Cogmind - Beta 13 @@@ ROGUE MODE // 2024.04.11 @ 00:22:18 Player: Naiya55 Result: Destroyed by G-47 Trooper with Particle Gun Performance ------------- Evolutions (2) 1000 Regions Visited (4) 800 Robots Destroyed (27) 135 Value Destroyed (834) 834 Prototype IDs (2) 40 Alien Tech Used (0) 0 Bonus (178) 178 TOTAL SCORE: 2987 Bonus ------- Follower Combat Kills 178 Cogmind --------- Core Integrity 0/550 Matter 251/300 Energy 100/100 System Corruption 10% Temperature Cool (9) Movement Core (350) Ox6 Location -8/Materials Parts ------- > --- POWER (1) -------- (None) > --- PROPULSION (3) --- (None) > --- UTILITY (3) ------ Large Storage Unit Advanced Targeting Computer > --- WEAPON (4) ------- (None) > --- INVENTORY (15) --- Ion Engine Ion Engine Aluminum Leg Aluminum Leg Aluminum Leg Aluminum Leg Aluminum Leg Aluminum Leg Improved Aluminum Leg Heat Sink Hardened Light Armor Plating Particle Cannon Particle Cannon Enhanced Autogun Peak State ------------ > --- POWER ------------ Ion Engine > --- PROPULSION ------- Aluminum Leg Improved Aluminum Leg Carbon-fiber Leg > --- UTILITY ---------- Large Storage Unit Improved Targeting Computer Advanced Targeting Computer > --- WEAPON ----------- Light Assault Rifle Flak Cannon Flak Cannon Rocket Launcher > --- INVENTORY -------- Ion Engine Ion Engine Aluminum Leg Aluminum Leg Aluminum Leg Aluminum Leg Aluminum Leg Aluminum Leg Improved Aluminum Leg Heat Sink Hardened Light Armor Plating Particle Cannon Particle Cannon Enhanced Autogun [Rating: 24] Favorites ----------- Power Light Ion Engine Engine Light Ion Engine Propulsion Aluminum Leg Leg Aluminum Leg Utility Large Storage Unit Device Improved Heat Sink Storage Large Storage Unit Processor Improved Targeting Computer Weapon Light Assault Rifle Energy Gun Heavy EM Pulse Gun Energy Cannon Particle Cannon Ballistic Gun Light Assault Rifle Ballistic Cannon Flak Cannon Launcher Rocket Launcher Build | -11 -10 -10 -9 -8 ------- Run | Yrd Mat Min Mat Mat Slots Evolved 4 | . . . 2 2 Power . | . . . . . Propulsion 1 | . . . 1 . Utility 1 | . . . 1 . Weapon 2 | . . . . 2 Parts Attached 34 | 5 1 1 18 9 Power 3 | 1 . . 2 . Engine 3 | 1 . . 2 . Core . | . . . . . Reactor . | . . . . . Propulsion 13 | 2 . . 10 1 Treads . | . . . . . Leg 13 | 2 . . 10 1 Wheel . | . . . . . Hover . | . . . . . Flight . | . . . . . Utility 8 | . 1 1 5 1 Device 5 | . . 1 4 . Storage 1 | . 1 . . . Processor 2 | . . . 1 1 Hackware . | . . . . . Protection . | . . . . . Artifact . | . . . . . Weapon 10 | 2 . . 1 7 Energy Gun 1 | . . . . 1 Energy Cannon 1 | . . . . 1 Ballistic Gun 4 | 2 . . 1 1 Ballistic Cannon 3 | . . . . 3 Launcher 1 | . . . . 1 Special Weapon . | . . . . . Impact Weapon . | . . . . . Slashing Weapon . | . . . . . Piercing Weapon . | . . . . . Special Melee Weapon . | . . . . . Unidentified Prototypes . | . . . . . Parts Lost 12 | . . . 3 9 Power 2 | . . . 1 1 Propulsion 4 | . . . 1 3 Utility 1 | . . . . 1 Weapon 5 | . . . 1 4 Highest Loss Streak 9 | . . . 2 9 To Critical Strikes . | . . . . . Average Slot Usage (%) 86 | . 74 85 96 65 Engine 10 | . 14 14 10 5 Leg 27 | . 28 28 32 16 Device 6 | . . . 11 1 Storage 10 | . 3 14 11 9 Processor 7 | . . . 8 12 Ballistic Gun 20 | . 28 28 21 7 Ballistic Cannon 1 | . . . . 8 Naked Turns . | . . . . . Heaviest Build 42 | 6 26 27 29 42 Greatest Support 38 | 20 20 20 33 38 Greatest Overweight (x) 6 | . 1 1 2 6 Average Overweight (x) . | . . 1 . . Largest Inventory Capacity 15 | 5 15 15 15 15 Average Capacity 14 | 5 7 15 15 15 Most Carried 15 | 4 5 5 15 15 Average Carried 10 | 2 4 4 13 14 Final Capacity 15 | 5 15 15 15 15 Final Carried 15 | 4 4 5 15 14 Class Distribution -------------------- 73% | Mutant 16% | Scavenger-Mutant 9% | Gunner Dominant Class ---------------- Mutant | -10/Materials Mutant | -10/Mines Mutant | -9/Materials Mutant | -8/Materials Resources | -11 -10 -10 -9 -8 ----------- Run | Yrd Mat Min Mat Mat Matter Collected 747 | 266 . 44 338 99 Remotely . | . . . . . Salvage Created 856 | 46 . 96 484 230 Parts 51 | 3 . 2 30 16 Haulers Intercepted . | . . . . . Recyclers Shooed 1 | . . . 1 . Parts Field Recycled . | . . . . . Retrieved Matter . | . . . . . Parts Self-Destructed . | . . . . . Prevented . | . . . . . Kills | -11 -10 -10 -9 -8 ------- Run | Yrd Mat Min Mat Mat Combat Hostiles Destroyed 25 | 1 . 2 13 9 Guns 19 | 1 . 2 13 3 Cannons 6 | . . . . 6 Classes Destroyed 8 | 1 . . 5 2 Builder 1 | . . . 1 . Watcher 1 | . . . 1 . Swarmer 7 | . . . 4 3 Grunt 12 | 1 . 2 6 3 Brawler 1 | . . . . 1 Duelist 1 | . . . 1 . Sentry 3 | . . . 2 1 Hunter 1 | . . . . 1 Best Kill Streak 9 | 1 . 2 5 9 Combat Bots Only 9 | 1 . 2 3 9 Max Kills in Single Turn 2 | 1 . 1 2 1 Gunslinging 1 | . . . 1 . Exploded . | . . . . . Melee . | . . . . . Uniques/NPCs Destroyed . | . . . . . Combat | -11 -10 -10 -9 -8 -------- Run | Yrd Mat Min Mat Mat Hostile Shots Fired 247 | 6 . 10 68 163 Missed 75 | 3 . . 19 53 Damage Taken 2285 | 33 . 117 573 1562 Core 681 | . . 28 92 561 Absorbed by Shields . | . . . . . Core Remaining (%) 88 | 100 . 88 77 . Volleys Fired 79 | 4 . 6 50 19 Largest 3 | 2 . 2 2 3 Hottest 108 | 40 . 40 40 108 Shots Fired 161 | 8 . 12 94 47 Gun 133 | 8 . 12 94 19 Cannon 28 | . . . . 28 Launcher . | . . . . . Special . | . . . . . Kinetic 161 | 8 . 12 94 47 Thermal . | . . . . . Explosive . | . . . . . Electromagnetic . | . . . . . Robot Hit Streak 14 | 2 . 6 14 6 Robot Miss Streak 6 | 2 . 1 2 6 Penetration Max . | . . . . . Secondary Targets 2 | . . . 2 . Max Gunslinging Chain 1 | . . . 1 . Shots Hit Robots 113 | 4 . 9 65 35 Core Hits 77 | 2 . 3 29 43 Critical Kills 1 | . . 1 . . Critical Parts Destroyed . | . . . . . Critical Strikes 1 | . . 1 . . Destroy 1 | . . 1 . . Melee Attacks . | . . . . . Impact . | . . . . . Slashing . | . . . . . Piercing . | . . . . . Sneak Attacks . | . . . . . Combat Hostiles . | . . . . . Follow-up Attacks . | . . . . . Damage Inflicted 1305 | 43 . 82 669 511 Guns 887 | 43 . 82 665 97 Cannons 404 | . . . . 404 Explosions . | . . . . . Melee . | . . . . . Ramming 14 | . . . 4 10 Kinetic 1291 | 43 . 82 665 501 Thermal . | . . . . . Explosive . | . . . . . Electromagnetic . | . . . . . Impact . | . . . . . Slashing . | . . . . . Piercing . | . . . . . Highest Corruption 10 | . . . . 10 Average Corruption 7 | . . . . 7 Corruption Purged . | . . . . . Corruption Blocked . | . . . . . Effects 12 | . . . . 12 Message Errors 1 | . . . . 1 Matter Fused 1 | . . . . 1 Heat Flow Errors 1 | . . . . 1 Energy Discharges 4 | . . . . 4 Data Loss (minor) 3 | . . . . 3 Data Loss (major) 1 | . . . . 1 Misdirections 1 | . . . . 1 Overload Shots . | . . . . . Overflow Damage . | . . . . . Projectiles . | . . . . . Explosions . | . . . . . Melee . | . . . . . Knockbacks 19 | . . . . 19 Impact 1 | . . . . 1 Kinetic 16 | . . . . 16 Secondary 2 | . . . . 2 Self-Inflicted Damage . | . . . . . Shots . | . . . . . Rammed 26 | . . . . 26 Targets Rammed 27 | . . . 1 26 Kicked 1 | . . . 1 . Crushed . | . . . . . Highest Temperature 342 | . . 16 6 342 Average Temperature 155 | . . 9 3 187 Received Heat Transfer 996 | 18 . 69 162 747 Effects 3 | . . . . 3 Interference 3 | . . . . 3 Siege Activations . | . . . . . Robots Corrupted . | . . . . . Combat Hostiles . | . . . . . Parts Fried . | . . . . . Impact Corruptions . | . . . . . Robots Melted . | . . . . . Combat Hostiles . | . . . . . Parts Melted . | . . . . . Heat Transferred . | . . . . . Parts Sabotaged . | . . . . . Parts Stolen . | . . . . . Parts Stripped . | . . . . . Power Chain Reactions . | . . . . . Alert | -11 -10 -10 -9 -8 ------- Run | Yrd Mat Min Mat Mat Peak Influence 309 | 20 28 133 268 309 Initial 74 | . 13 10 . 74 Average 131 | 2 19 79 158 179 Maximum Alert Level 1 | . . . 1 1 Low Security (%) 72 | 100 100 100 62 55 Level 1 27 | . . . 37 44 Level 2 . | . . . . . Level 3 . | . . . . . Level 4 . | . . . . . Level 5 . | . . . . . High Security . | . . . . . Max Security . | . . . . . Squads Dispatched 5 | . . . 3 2 Investigation 2 | . . . 2 . Extermination . | . . . . . Reinforcement 3 | . . . 1 2 Assault . | . . . . . Garrison . | . . . . . Intercept . | . . . . . Searches Triggered . | . . . . . Construction Impeded . | . . . . . Haulers Reinforced . | . . . . . Active Scanning Responses . | . . . . . Cargo Convoy Interrupts . | . . . . . Stealth | -11 -10 -10 -9 -8 --------- Run | Yrd Mat Min Mat Mat Distress Signals 6 | . . . 4 2 Communications Jammed . | . . . . . Distress Signals . | . . . . . Times Spotted 49 | 1 1 2 26 19 Peak Tracking Total 12 | 1 1 2 4 12 Tactical Retreats 4 | . . . 2 2 Traps | -11 -10 -10 -9 -8 ------- Run | Yrd Mat Min Mat Mat Traps Triggered 6 | . . . 1 5 Indirectly . | . . . . . Trap Hack Attempts . | . . . . . Triggered . | . . . . . Disarmed . | . . . . . Reprogrammed . | . . . . . Reused . | . . . . . Traps Extracted . | . . . . . Installed . | . . . . . Triggered . | . . . . . Machines | -11 -10 -10 -9 -8 ---------- Run | Yrd Mat Min Mat Mat Machines Disabled 1 | . . . 1 . Max in Single Turn . | . . . . . Machines Repaired . | . . . . . Machines Dismantled . | . . . . . Machines Sabotaged . | . . . . . Overloaded Fab Kills . | . . . . . Hacking | -11 -10 -10 -9 -8 --------- Run | Yrd Mat Min Mat Mat Machines Accessed 9 | . 1 . 7 1 Terminals 9 | . 1 . 7 1 Fabricators . | . . . . . Repair Stations . | . . . . . Recycling Units . | . . . . . Scanalyzers . | . . . . . Garrison Access . | . . . . . Total Hacks 26 | . 3 . 20 3 Successful 19 | . 2 . 14 3 Failed 5 | . 1 . 4 . Catastrophic . | . . . . . Database Lockouts 2 | . . . 2 . Manual . | . . . . . Terminals 26 | . 3 . 20 3 Fabricators . | . . . . . Repair Stations . | . . . . . Recycling Units . | . . . . . Scanalyzers . | . . . . . Garrison Access . | . . . . . Terminal Hacks 19 | . 2 . 14 3 Record 15 | . 2 . 10 3 Prototype ID Bank 1 | . . . 1 . Terminal Index 1 | . . . 1 . Alert Level 2 | . . . 2 . Fabricator Hacks . | . . . . . Repair Station Hacks . | . . . . . Recycling Unit Hacks . | . . . . . Scanalyzer . | . . . . . Garrison Access Hacks . | . . . . . Unauthorized Hacks . | . . . . . Terminals . | . . . . . Fabricators . | . . . . . Repair Stations . | . . . . . Recycling Units . | . . . . . Scanalyzers . | . . . . . Garrison Access . | . . . . . Data Cores Recovered 1 | . . . 1 . Used . | . . . . . Hacking Detections 8 | . 1 . 6 1 Full Trace Events 2 | . . . 2 . Feedback Events . | . . . . . Feedback Blocked . | . . . . . Robot Schematics Acquired . | . . . . . Robots Built . | . . . . . Authchips . | . . . . . Time . | . . . . . Total Robot Build Rating . | . . . . . Part Schematics Acquired . | . . . . . Parts Built . | . . . . . Authchips . | . . . . . Time . | . . . . . Total Part Build Rating . | . . . . . Parts Repaired . | . . . . . Time . | . . . . . Parts Recycled . | . . . . . Recycled Matter . | . . . . . Retrieved Matter . | . . . . . Retrieved Components . | . . . . . Parts Scanalyzed . | . . . . . Part Schematics Acquired . | . . . . . Parts Damaged . | . . . . . Bothacking | -11 -10 -10 -9 -8 ------------ Run | Yrd Mat Min Mat Mat Used RIF Installer . | . . . . . Robots Hacked . | . . . . . Non-combat . | . . . . . Combat . | . . . . . Robot Hacks Applied . | . . . . . Relay Couplers Released . | . . . . . Fabnet Peak Effective % . | . . . . . Robots Rewired . | . . . . . Allies Hacked . | . . . . . Hacks Repelled . | . . . . . Allies | -11 -10 -10 -9 -8 -------- Run | Yrd Mat Min Mat Mat Total Allies 3 | . . 3 . . Largest Group 3 | . . 3 3 . Highest-Rated Group 40 | . . 40 40 . Highest-Rated Ally 16 | . . 16 16 . Total Orders . | . . . . . Ally Attacks 38 | . . 10 28 . Total Damage 410 | . . 98 312 . Kills 7 | . . 2 5 . Allies Corrupted . | . . . . . Allies Melted . | . . . . . Intel | -11 -10 -10 -9 -8 ------- Run | Yrd Mat Min Mat Mat Robot Analysis Total . | . . . . . Derelict Logs Recovered 1 | . . 1 . . Drone Launches . | . . . . . Drone Recoveries . | . . . . . Exploration | -11 -10 -10 -9 -8 ------------- Run | Yrd Mat Min Mat Mat Turns Passed 1879 | 97 78 401 922 381 Spaces Moved 1031 | 70 58 200 567 136 Core 15 | 13 . . . 2 Treads . | . . . . . Legs 1016 | 57 58 200 567 134 Wheels . | . . . . . Hover . | . . . . . Flight . | . . . . . Fastest Speed 50 | 50 120 190 120 120 Average Speed 138 | 107 133 190 122 144 Slowest Speed 350 | 120 190 190 260 350 Overloaded Moves . | . . . . . Propulsion Burnouts . | . . . . . Robots Hopped . | . . . . . Cave-ins Triggered . | . . . . . Exploration Rate (%) 28 | 9 15 51 44 21 Regions Visited 4 Branch Regions 1 Pre-discovered Areas . | . . . . . Known Exits Taken . | . . . . . Unknown Exits Taken 4 | 1 1 1 1 . Scrap Searched 1 | . . 1 . . Spaces Dug . | . . . . . Terrain Destroyed . | . . . . . Melee . | . . . . . Projectile . | . . . . . AOE . | . . . . . Terrain Rammed . | . . . . . Walls Destroyed . | . . . . . Machines Disabled . | . . . . . Actions | -11 -10 -10 -9 -8 --------- Run | Yrd Mat Min Mat Mat Total 1279 | 83 59 211 710 216 Wait 59 | . . . 44 15 Move 1027 | 69 57 199 566 136 Hop . | . . . . . Pick Up 29 | 5 1 3 17 3 Fast Attach 16 | 4 . 1 8 3 Attach 8 | 1 1 . 2 4 Detach 2 | . . . . 2 Swap 10 | . . . 8 2 Drop 21 | . . 2 14 5 Fire 79 | 4 . 6 50 19 Melee . | . . . . . Ram 27 | . . . . 27 Kick 1 | . . . 1 . Crush . | . . . . . Escape Stasis . | . . . . . Rewire . | . . . . . Trap . | . . . . . Miscellaneous . | . . . . . Route ------- -11/Scrapyard -10/Materials -10/Mines (discovered 2 exits: *Mat x2) -9/Materials -8/Materials History --------- Turn | Location | Event 2 | -11/Scrapyard | Met Revision 17 72 | -11/Scrapyard | Discovered new exit (range 8) 98 | -11/Scrapyard | Entered Materials 146 | -10/Materials | Discovered new exit (range 5) 176 | -10/Materials | Entered Mines 199 | -10/Mines | Learned Materials machine intel 276 | -10/Mines | Discovered new exit (range 6) 295 | -10/Mines | Assisted by bots powering up and referring to "LRC-V3" 310 | -10/Mines | Build established: Mutant 491 | -10/Mines | Discovered new exit (range 5) 577 | -10/Mines | Entered Materials 577 | -9/Materials | Accompanied by 3 allies 577 | -9/Materials | Evolved 2 slots: Propulsion x1, Utility x1 578 | -9/Materials | Loaded intel: 66 machine locations 1092 | -9/Materials | Central database locked down 1092 | -9/Materials | Central database locked down 1469 | -9/Materials | Discovered new exit (range 9) 1499 | -9/Materials | Entered another Materials area 1499 | -8/Materials | Evolved 2 slots: Weapon x2 1718 | -8/Materials | System corruption reached 10% 1778 | -8/Materials | Destroyed 9 combat bots 1813 | -8/Materials | Core integrity fell below 50% 1833 | -8/Materials | Lost 9 parts (1p3n1u4w) 1853 | -8/Materials | Core integrity fell below 20% 1880 | -8/Materials | Destroyed by G-47 Trooper with Particle Gun Last Messages --------------- 01847_ Slammed into G-47 Trooper. 01849_ K-01 Serf collects debris. 01851_ Slammed into G-47 Trooper. 01852_ K-01 Serf collects debris. 01858_ Slammed into G-47 Trooper. 01858_ K-01 Serf collects debris. 01860_ Terminal disabled. 01861_ Slammed into G-47 Trooper. 01861_ G-47 Trooper knocked back. 01861_ K-01 Serf collects debris. 01864_ Critical hit (Burn: +37). 01865_ Slammed into G-47 Trooper. 01865_ K-01 Serf collects debris. 01868_ Critical hit (Burn: +37). 01868_ Slammed into G-47 Trooper. 01869_ K-01 Serf collects debris. 01872_ System corrupted: Energy discharge (-37). 01872_ Slammed into G-47 Trooper. 01872_ K-01 Serf collects debris. 01875_ Slammed into G-47 Trooper. Map ----- +----------------------------------------------------+ | ???#** !** ###### """#???? | | ???#** """ !* """ + #???? | | ???#[[ """ """ ###### #???? | | ???#[[ """ """ #????# #???? | | ???????# ##????#####+######## | | ???????# ########## + =[ | | ???????# """ """ """ # # # """ | | ???????+ """ """ """ # # # "G | | ???????# """ """ """ # # + """ | | ???????# " " # # # | | ???????# "R" # # # | | ???????# """ # # ####### | | ???????# / # #?????? | | ???????# # + #?????? | | ????##?######## # # #?????? | | ????# ?? ??# ################# #?????? | | ????# ?#"" a #?# #???# #?????? | | ????# ! #" ###=[ #???# #?????? | | ????#!! #"" ^ # #???# ####### | | ????#!! + % %+%* #???# # | | ????#! # k #=[ #???# # """ | | ????# ??# " #!= #???# # """ | | ???# ????# """ [ # #???# +[ """ | | ???#####??????# "" # #???# # | | ???????????#### o ############### # | | ??????? m@g ####### | | ??? [ k #?? | | ???? #T# #?? | | ????############+#### #?? | | ????????????????????# ###+######+###########?? | | ????????????????????#######?? ?????????????????? | | ?????????????????????????????? #????????????????? | | ??????????????????????????????? #????????????????? | | ????????????????????????????????#????????????????? | | ?????????????????????????????????????????????????? | | ?????????????????????????????????????????????????? | | | | | | | | | | | | | | | | | | | | | | | | | | | | | +----------------------------------------------------+ Best States ------------- Heat Dissipation 52 Coolant Potential 50 Energy Generation 10 Energy Capacity 250 Matter Stores 300 Matter Capacity 300 Sight Range 16 Terrain Scan Range 14 Terrain Scan Density 10 Evasion (%) 55 Targeting Accuracy 14 Item Schematics ----------------- None Robot Schematics ------------------ None Fabricated ------------ Nothing Alien Tech Used ----------------- None Achievements -------------- Librarian More Dakka Please System Compromised Challenges ------------ None Game ------ Seed RainbowLegShifter Manual? 0 Play Time 00:35:14 Cumulative 1.2 hours Start 2024.04.10 @ 23:23:53 End 2024.04.11 @ 00:22:18 Sessions 4 Manual Loads 0 Difficulty Rogue Special Mode None Game No. 2 Rogue 2 Adventurer 0 Explorer 0 Win Type - Total 0 Types 0/0/0/0/0/0/0/0/0 Lore% 2 Gallery% 3 Achievement% 3 Wizard Run 0 Options --------- Layout 1 ASCII 0 Keyboard 0 Movement Vi Keybinds 0 Fullscreen 2 Font 24/Smallcaps Map View 50x35 Zoom Use 0% Tactical HUD 1 Map Filters NONE Filters NONE Steam 1 RUN: b83f96a0-8a79-4b55-8d17-9008312be706